bitfinex/quotes_SOLUSD_20240827
["timestamp","ask_amount","ask_price","bid_price","bid_amount"]
[1724793416017,1.129262,152.67,152.63,20.12549]
[1724793416223,1.129262,152.67,152.66,22.9263]
[1724793416818,1.129262,152.69,152.68,6.5496]
[1724793417028,1.129262,152.61,152.55,49.50637425]
[1724793417404,6.77298487,152.75,152.62,6.5522]
[1724793417405,1.129262,152.63,152.62,6.5522]
[1724793417696,1.129262,152.63,152.49,13.225438]
[1724793417697,1.129262,152.6,152.52,82.28717425]
[1724793417914,1.129262,152.58,152.52,82.28717425]
[1724793418221,1.129262,152.58,152.57,13.0833]
[1724793420431,1.129262,152.58,152.57,6.529]
[1724793421609,1.129262,152.55,152.54,6.529]
[1724793422333,51.129262,152.55,152.54,6.529]
[1724793423221,51.129262,152.55,152.47,16.3966]
[1724793423403,1.129262,152.44,152.43,22.9604]
[1724793423610,50.0,152.52,152.45,6.5594]
[1724793423828,50.0,152.52,152.43,16.4001]
[1724793423829,50.0,152.52,152.46,6.529]
[1724793424021,50.0,152.52,152.47,6.529]
[1724793424205,56.5577,152.5,152.4,6.5615]
[1724793424411,50.0,152.48,152.4,6.5615]
[1724793424641,5.0,152.54,152.34,65.91597425]
[1724793424642,50.0,152.46,152.34,65.91597425]
[1724793424840,5.0,152.52,152.34,16.4096]
[1724793424841,50.0,152.45,152.34,16.4096]
[1724793425454,50.0,152.43,152.37,6.5629]
[1724793425739,50.0,152.43,152.35,6.5635]
[1724793426076,50.0,152.43,152.34,16.4096]
[1724793426115,50.0,152.43,152.37,6.5627]
[1724793426845,50.0,152.5,152.37,49.50637425]
[1724793427015,22.5949,152.51,152.37,49.50637425]
[1724793427016,50.0,152.48,152.42,6.5607]
[1724793427526,6.5565,152.52,152.4,16.4036]
[1724793427527,50.0,152.52,152.43,16.4003]
[1724793427823,50.0,152.54,152.46,16.3975]
[1724793428325,50.0,152.54,152.48,6.5582]
[1724793428538,50.0,152.51,152.43,49.50637425]
[1724793428834,50.0,152.48,152.42,6.5606]
[1724793429533,50.0,152.46,152.41,22.9639]
[1724793429700,50.0,152.46,152.41,16.4027]
[1724793430535,50.0,152.48,152.41,22.9639]
[1724793430699,50.0,152.48,152.41,16.4027]
[1724793430903,25.6998,152.57,152.41,16.4027]
[1724793430904,50.0,152.5,152.43,6.56]
[1724793431120,50.0,152.52,152.45,6.5594]
[1724793431705,50.0,152.5,152.44,22.9593]
[1724793432932,50.0,152.5,152.32,11.529]
[1724793432933,50.0,152.45,152.25,5.0]
[1724793433132,50.0,152.45,152.37,6.5625]
[1724793433377,50.0,152.45,152.37,6.5629]
[1724793433630,50.0,152.42,152.32,16.4118]
[1724793433839,50.0,152.42,152.35,6.5637]
[1724793434008,50.0,152.42,152.36,6.5633]
[1724793434209,50.0,152.42,152.34,16.4096]
[1724793434809,50.0,152.42,152.35,6.5637]
[1724793435010,50.0,152.42,152.36,6.5631]
[1724793435205,50.0,152.44,152.36,6.5631]
[1724793436085,50.0,152.44,152.37,6.5627]
[1724793436519,50.0,152.43,152.34,16.4096]
[1724793436736,50.0,152.46,152.39,6.562]
[1724793437033,50.0,152.48,152.41,6.5612]
[1724793437910,50.0,152.46,152.39,16.4049]
[1724793438112,50.0,152.5,152.42,16.4018]
[1724793439366,50.0,152.53,152.43,49.63186425]
[1724793439546,50.0,152.53,152.34,32.8196]
[1724793439547,50.0,152.37,152.29,16.4159]
[1724793439725,25.803,152.44,152.29,16.4159]
[1724793439726,50.0,152.39,152.29,16.4159]
[1724793440031,50.0,152.37,152.26,0.8285013]
[1724793440213,14.4031,152.44,152.26,0.8285013]
[1724793440214,50.0,152.34,152.26,0.8285013]
[1724793440413,50.0,152.36,152.29,16.4157]
[1724793440626,50.0,152.38,152.3,6.5657]
[1724793440929,50.0,152.38,152.29,16.4157]
[1724793440930,50.0,152.38,152.31,6.5655]
[1724793441129,50.0,152.22,152.12,6.5735]
[1724793441343,50.0,152.22,152.13,141.83690228]
[1724793441505,50.0,152.2,152.13,141.83690228]
[1724793441711,50.0,152.2,152.13,148.41010228]
[1724793442574,50.0,152.22,152.14,6.5727]
[1724793442934,50.0,152.22,152.13,141.83690228]
[1724793443239,50.0,152.2,152.13,148.41000228]
[1724793443609,50.0,152.22,152.14,49.50637425]
[1724793443805,50.0,152.2,152.13,141.83690228]
[1724793444032,50.0,152.14,152.13,125.40450228]
[1724793444534,115.0,152.14,152.13,125.07869772]
[1724793444717,50.0,152.17,152.13,125.07869772]
[1724793445909,16.66948,152.27,152.13,125.07869772]
[1724793445910,50.0,152.19,152.13,125.07869772]
[1724793446133,50.0,152.17,152.13,125.07869772]
[1724793446340,50.0,152.19,152.13,125.07869772]
[1724793446700,50.0,152.17,152.13,125.07869772]
[1724793446837,50.0,152.2,152.13,125.07869772]
[1724793447837,6.5695,152.22,152.13,125.07869772]
[1724793447838,50.0,152.18,152.13,125.07869772]
[1724793448041,50.0,152.2,152.13,125.07869772]
[1724793448222,49.2433,152.31,152.13,65.3475387]
[1724793448223,55.0,152.14,152.13,65.3475387]
[1724793448536,50.0,152.14,152.13,6.10996058]
[1724793448842,115.0,152.14,152.13,6.10996058]
[1724793449640,95.0,152.14,152.13,6.10996058]
[1724793450337,50.0,152.14,152.13,6.10996058]
[1724793450917,50.0,152.16,152.13,6.10996058]
[1724793451140,50.0,152.14,152.13,6.10996058]
[1724793451834,16.4236,152.22,152.13,6.10996058]
[1724793451835,50.0,152.16,152.13,6.10996058]
[1724793452219,50.0,152.18,152.13,6.10996058]
[1724793454341,50.0,152.14,152.13,6.10996058]
[1724793454724,50.0,152.18,152.13,6.10996058]
[1724793455042,49.2587,152.26,152.13,6.10996058]
[1724793455043,50.0,152.15,152.13,6.10996058]
[1724793455834,56.5725,152.15,152.13,6.10996058]
[1724793456778,65.0,152.14,152.13,6.10996058]
[1724793457080,65.25098,152.14,152.13,6.10996058]
[1724793457814,50.0,152.04,152.02,234.17351709]
[1724793458359,50.0,152.08,152.02,234.17351709]
[1724793458813,50.0,152.06,152.02,234.17351709]
[1724793459619,50.0,152.08,152.02,240.75131709]
[1724793459818,50.0,152.1,152.02,234.17351709]
[1724793460372,50.0,152.12,152.02,250.61831709]
[1724793461041,50.0,152.12,152.04,6.5771]
[1724793461238,50.0,152.08,152.02,234.17351709]
[1724793461851,50.0,152.12,152.03,9.9251]
[1724793462039,50.0,152.14,152.07,16.4387]
[1724793462589,50.0,152.14,152.07,23.0144]
[1724793462732,50.0,152.14,152.03,26.3691]
[1724793463062,50.0,152.14,152.06,6.5759]
[1724793463746,50.0,152.14,152.08,6.5753]
[1724793464177,50.0,152.16,152.09,6.5748]
[1724793464478,50.0,152.15,152.09,23.0122]
[1724793464860,50.0,152.13,152.05,16.4416]
[1724793465044,50.0,152.11,152.05,23.0179]
[1724793465346,50.0,152.11,152.05,16.4416]
[1724793465545,50.0,152.13,152.05,23.0183]
[1724793466248,50.0,152.11,152.05,23.0183]
[1724793466435,50.0,152.13,152.06,6.5763]
[1724793466747,50.0,152.13,152.07,6.5758]
[1724793466950,50.0,152.17,152.09,6.575]
[1724793467669,50.0,152.22,152.1,49.50637425]
[1724793467879,50.0,152.22,152.15,16.4311]
[1724793468227,50.0,152.2,152.15,16.4311]
[1724793468342,50.0,152.2,152.13,6.5733]
[1724793468648,50.0,152.18,152.11,16.4345]
[1724793469025,50.0,152.2,152.11,16.4345]
[1724793469657,50.0,152.15,152.08,74.04697425]
[1724793469837,50.0,152.15,152.08,24.5406]
[1724793470036,50.0,152.17,152.08,31.1156]
[1724793470262,50.0,152.17,152.08,24.5406]
[1724793470433,50.0,152.13,152.08,24.5406]
[1724793470757,50.0,152.11,152.08,24.5406]
[1724793471054,16.4258,152.2,152.08,24.5406]
[1724793471055,50.0,152.09,152.08,24.5406]
[1724793471356,50.0,152.09,152.03,32.9464]
[1724793471357,50.0,152.09,152.03,9.9251]
[1724793471577,56.5763,152.06,152.03,9.9251]
[1724793471731,50.0,152.06,152.03,9.9251]
[1724793472548,50.0,152.08,152.03,9.9251]
[1724793473257,6.575,152.1,152.04,6.5771]
[1724793473258,50.0,152.1,152.04,6.5771]
[1724793473432,50.0,152.1,152.03,16.5027]
[1724793474055,50.0,152.14,152.04,16.4428]
[1724793474257,50.0,152.16,152.06,49.50637425]
[1724793474436,50.0,152.14,152.07,16.4394]
[1724793475436,50.0,152.14,152.07,23.0152]
[1724793476660,56.573,152.14,152.05,16.4409]
[1724793476840,50.0,152.14,152.05,16.4409]
[1724793477045,50.0,152.07,152.02,234.17351709]
[1724793477382,50.0,152.05,152.02,234.17351709]
[1724793477555,50.0,152.03,152.02,234.17351709]
[1724793477739,115.12549,152.03,152.02,172.95393709]
[1724793477942,115.12549,152.03,152.02,115.99393709]
[1724793477943,115.25098,152.03,152.02,115.99393709]
[1724793478259,120.25098,152.03,152.02,62.19252458]
[1724793478467,120.25098,152.03,152.02,30.59252125]
[1724793478660,120.25098,152.03,152.02,29.09422125]
[1724793479185,121.54566226,152.03,152.02,29.09422125]
[1724793479681,121.54566226,152.03,152.02,26.58222125]
[1724793479696,50.0,151.92,151.91,225.74428144]
[1724793479850,106.70789,151.92,151.91,225.74428144]
[1724793480040,106.83338,151.92,151.91,222.98998144]
[1724793480264,61.5824,151.92,151.91,222.98998144]
[1724793480734,81.5824,151.92,151.91,222.98998144]
[1724793481235,81.5824,151.92,151.91,216.38557971]
[1724793481517,88.60467985,151.92,151.91,179.36481351]
[1724793481674,81.83338,151.92,151.91,150.94831351]
[1724793482267,83.12806226,151.92,151.91,139.17974577]
[1724793482578,82.87708226,151.92,151.91,139.17974577]
[1724793482941,82.87708226,151.92,151.91,108.92876577]
[1724793483344,82.87708226,151.92,151.91,102.32386422]
[1724793483345,81.5824,151.92,151.91,102.32386422]
[1724793483765,61.5824,151.92,151.91,102.32386422]
[1724793484143,56.5824,151.92,151.91,102.32386422]
[1724793484353,61.5824,151.92,151.91,102.07288422]
[1724793484655,68.35345848,151.92,151.91,70.46808263]
[1724793484864,68.35345848,151.92,151.91,63.69581051]
[1724793485054,61.5824,151.92,151.91,52.14661051]
[1724793485875,106.5824,151.92,151.91,45.54220878]
[1724793486173,56.5824,151.92,151.91,45.54220878]
[1724793487110,50.0,151.92,151.91,45.54220878]
[1724793487801,56.5824,151.92,151.91,45.54220878]
[1724793487971,56.77096693,151.92,151.91,45.54220878]
[1724793488339,50.0,151.92,151.91,45.54220878]
[1724793490583,50.0,151.96,151.91,45.54220878]
[1724793490782,50.0,151.98,151.92,45.0]
[1724793491193,50.0,152.0,151.92,45.0]
[1724793491486,50.0,151.98,151.92,45.0]
[1724793491657,50.0,151.97,151.91,45.54220878]
[1724793491865,50.0,152.03,151.95,10.9864]
[1724793492085,50.0,152.03,151.96,26.5057]
[1724793492267,50.0,152.05,151.97,45.0]
[1724793492468,50.0,152.05,151.98,5.0]
[1724793492661,16.4286,152.18,151.97,51.5798]
[1724793492662,50.0,152.07,151.99,45.0]
[1724793493293,50.0,152.07,151.98,51.5794]
[1724793493467,6.5735,152.13,151.99,5.25098]
[1724793493468,50.0,152.09,151.99,5.25098]
[1724793493665,50.0,152.09,152.0,45.0]
[1724793493868,50.0,152.12,152.01,21.57139]
[1724793494081,50.0,152.09,152.02,45.0]
[1724793494589,16.422,152.24,152.02,56.578]
[1724793494872,50.0,152.08,151.95,32.4382]
[1724793494964,50.0,152.08,151.97,20.0]
[1724793495887,50.0,152.08,151.99,6.5791]
[1724793496076,50.0,152.04,151.95,27.4382]
[1724793496461,50.0,152.01,151.95,10.9864]
[1724793496664,50.0,151.99,151.95,10.9864]
[1724793496887,50.0,151.97,151.95,10.9864]
[1724793497089,11.1331,152.18,151.88,10.9475]
[1724793497090,50.0,151.94,151.88,10.9475]
[1724793497273,32.8766,152.09,151.88,10.9475]
[1724793497588,6.5778,152.03,151.91,52.12470878]
[1724793497785,50.0,151.98,151.91,45.54220878]
[1724793497994,50.0,151.96,151.91,45.54220878]
[1724793498167,50.0,151.98,151.91,45.54220878]
[1724793498363,50.0,151.94,151.91,45.54220878]
[1724793498576,5.25098,152.08,151.91,45.54220878]
[1724793498577,50.0,151.92,151.91,45.54220878]
[1724793498770,50.0,151.96,151.91,45.54220878]
[1724793498967,50.0,151.95,151.91,45.54220878]
[1724793499279,50.0,151.92,151.91,45.54220878]
[1724793500363,50.0,151.93,151.91,45.54220878]
[1724793500597,50.0,151.97,151.91,45.54220878]
[1724793501007,50.0,151.95,151.91,45.54220878]
[1724793501207,50.0,151.92,151.91,45.54220878]
[1724793501697,50.0,151.94,151.91,45.54220878]
[1724793501873,50.0,151.97,151.91,45.54220878]
[1724793502394,50.0,151.99,151.91,45.54220878]
[1724793502895,50.0,151.97,151.91,45.54220878]
[1724793503795,50.0,151.99,151.91,45.54220878]
[1724793503981,50.0,151.99,151.91,52.12490878]
[1724793504181,50.0,151.94,151.91,45.54220878]
[1724793504478,50.0,151.98,151.91,45.54220878]
[1724793504803,50.0,151.96,151.91,45.54220878]
[1724793505294,16.4428,152.05,151.91,45.54220878]
[1724793505295,50.0,152.01,151.93,6.5817]
[1724793505491,50.0,152.01,151.92,6.582]
[1724793505681,50.0,152.01,151.93,51.5819]
[1724793505990,50.0,151.93,151.91,45.54220878]
[1724793507082,56.582,151.93,151.91,45.54220878]
[1724793508868,6.76773386,152.01,151.91,45.54220878]
[1724793509072,50.0,152.07,151.92,45.0]
[1724793509370,50.0,152.05,151.93,16.4542]
[1724793509584,50.0,152.05,151.97,6.5801]
[1724793509778,50.0,152.09,151.98,45.0]
[1724793509995,50.0,152.08,152.0,6.5786]
[1724793510172,50.0,152.08,152.0,6.5788]
[1724793510372,50.0,152.1,152.01,6.5784]
[1724793510696,50.0,152.1,151.98,45.0]
[1724793510697,50.0,152.14,152.02,16.4443]
[1724793510885,50.0,152.14,152.04,12.3155]
[1724793511198,50.0,152.18,152.1,6.5745]
[1724793511400,50.0,152.2,152.1,6.5745]
[1724793511701,17.5157,152.31,151.91,45.54220878]
[1724793511702,50.0,152.06,151.96,12.3155]
[1724793511913,50.0,152.09,151.96,12.3155]
[1724793512197,50.0,152.05,151.96,12.3155]
[1724793512771,56.5762,152.07,151.96,18.8961]
[1724793513404,56.5762,152.07,151.96,12.3155]
[1724793513605,50.0,152.07,151.96,12.3155]
[1724793513797,6.5766,152.06,151.96,18.8961]
[1724793514099,6.5766,152.06,151.96,18.896]
[1724793514302,50.0,152.1,152.0,6.5788]
[1724793514475,6.5752,152.09,151.99,16.4478]
[1724793514701,50.0,152.08,151.97,6.5798]
[1724793515005,50.0,152.08,151.96,12.44099]
[1724793515351,50.0,152.08,151.99,6.5793]
[1724793515606,50.0,152.1,151.98,16.449]
[1724793515774,6.5745,152.11,151.99,65.25098]
[1724793516402,6.5737,152.12,152.02,6.5779]
[1724793516693,6.5731,152.14,152.03,45.44277919]
[1724793516902,6.5731,152.14,152.03,45.0]
[1724793517089,50.0,152.16,152.05,6.5767]
[1724793517090,56.5724,152.16,152.05,6.5767]
[1724793517299,50.0,152.21,152.07,12.6932]
[1724793517485,50.0,152.21,152.13,6.5731]
[1724793517693,50.0,152.21,152.1,16.4361]
[1724793517896,50.0,152.23,152.11,45.0]
[1724793518099,16.4195,152.26,152.11,45.0]
[1724793518100,50.0,152.24,152.11,45.0]
[1724793518476,56.5696,152.22,152.11,45.0]
[1724793519748,50.0,152.24,152.14,6.5728]
[1724793519900,6.5684,152.25,152.14,6.5728]
[1724793520101,56.5685,152.24,152.14,6.5728]
[1724793520405,6.5679,152.26,152.16,6.5719]
[1724793520602,50.0,152.26,152.16,16.4296]
[1724793520866,50.0,152.24,152.12,16.4336]
[1724793520987,6.569,152.23,152.13,51.5732]
[1724793521592,50.0,152.26,152.15,16.4305]
[1724793521783,56.5664,152.29,152.19,6.5707]
[1724793522093,50.0,152.29,152.19,6.5707]
[1724793522304,56.5664,152.29,152.19,6.5707]
[1724793522477,50.0,152.27,152.18,16.4276]
[1724793522684,6.5674,152.27,152.18,16.4276]
[1724793523001,56.5666,152.29,152.18,16.4276]
[1724793523309,50.0,152.25,152.14,16.4314]
[1724793523479,50.0,152.23,152.14,16.4314]
[1724793523802,50.0,152.29,152.14,16.4314]
[1724793524103,50.0,152.29,152.09,87.37967425]
[1724793524104,2.33895485,152.47,152.39,5.0]
[1724793524286,0.8285013,152.49,152.47,6.5585]
[1724793524907,0.8285013,152.49,152.48,20.12549]
[1724793525088,0.8285013,152.49,152.48,45.25098]
[1724793525281,50.0,152.63,152.51,16.3914]
[1724793525486,50.8285013,152.65,152.51,16.3914]
[1724793525707,50.0,152.63,152.53,6.556]
[1724793526009,50.0,152.63,152.53,6.5559]
[1724793527199,50.0,152.6,152.51,16.3914]
[1724793527712,50.0,152.62,152.51,16.3914]
[1724793527908,50.0,152.62,152.51,17.70235271]
[1724793528082,50.0,152.62,152.51,16.3914]
[1724793528584,50.0,152.64,152.51,16.3914]
[1724793528794,50.0,152.58,152.46,22.9557]
[1724793529032,50.0,152.58,152.47,6.5585]
[1724793529179,50.0,152.58,152.48,6.558]
[1724793529693,50.0,152.56,152.48,6.558]
[1724793530028,6.5536,152.59,152.48,6.558]
[1724793530029,50.0,152.58,152.48,6.558]
[1724793530309,50.0,152.56,152.46,16.3967]
[1724793530504,50.0,152.56,152.47,6.5583]
[1724793531098,50.0,152.56,152.46,16.3967]
[1724793531416,50.0,152.56,152.46,22.9557]
[1724793533490,50.0,152.56,152.46,16.3967]
[1724793534710,6.5546,152.57,152.46,16.3967]
[1724793534711,50.0,152.58,152.47,52.86978428]
[1724793535007,56.554,152.58,152.48,6.5581]
[1724793535191,16.3815,152.62,152.46,16.3967]
[1724793535192,6.5554,152.55,152.46,16.3967]
[1724793535519,50.0,152.56,152.39,16.351]
[1724793535806,50.0,152.59,152.48,16.3953]
[1724793536186,6.554,152.58,152.48,22.9533]
[1724793537012,50.0,152.59,152.47,0.12549]
[1724793537310,50.0,152.59,152.42,32.8024]
[1724793537311,50.0,152.59,152.44,16.3998]
[1724793537494,50.0,152.57,152.45,45.0]
[1724793537725,50.0,152.59,152.46,1.31131647]
[1724793538692,6.5546,152.57,152.47,6.80948]
[1724793538895,56.5537,152.59,152.48,7.86915478]
[1724793539098,50.0,152.59,152.49,1.31120658]
[1724793539711,6.5544,152.57,152.49,1.31120658]
[1724793540184,50.0,152.61,152.49,1.31120658]
[1724793540388,6.5517,152.64,152.54,6.5552]
[1724793540606,50.0,152.64,152.5,0.12549]
[1724793540810,6.5526,152.62,152.52,6.5564]
[1724793541315,6.5526,152.62,152.5,45.25098]
[1724793541518,50.0,152.62,152.5,45.25098]
[1724793541805,50.0,152.58,152.47,6.5584]
[1724793542017,50.0,152.58,152.45,16.398]
[1724793542018,56.5543,152.58,152.48,6.5578]
[1724793542718,56.5543,152.58,152.45,16.398]
[1724793542719,6.5549,152.56,152.45,16.398]
[1724793543727,0.8285013,152.65,152.42,32.8024]
[1724793543728,50.0,152.63,152.52,6.5565]
[1724793544040,6.5522,152.62,152.53,6.556]
[1724793544916,50.8285013,152.65,152.54,16.51449]
[1724793545214,50.8285013,152.65,152.55,11.97569]
[1724793545517,50.8285013,152.65,152.48,0.59195316]
[1724793545518,6.5529,152.61,152.48,11.8502]
[1724793545721,50.0,152.64,152.48,11.8502]
[1724793545722,6.5521,152.63,152.49,65.25098]
[1724793546019,56.5517,152.64,152.53,22.9458]
[1724793546221,0.8285013,152.65,152.53,16.3899]
[1724793546391,7.3795013,152.65,152.56,6.5543]
[1724793546601,0.8285013,152.65,152.57,6.5541]
[1724793546829,0.8285013,152.65,152.6,6.5529]
[1724793547011,0.8285013,152.65,152.59,16.3837]
[1724793547509,0.8285013,152.65,152.61,6.5525]
[1724793547752,0.8285013,152.65,152.6,6.553]
[1724793548300,0.8285013,152.65,152.62,6.5521]
[1724793549408,0.8285013,152.65,152.64,6.5513]
[1724793549618,0.8285013,152.65,152.62,22.9313]
[1724793550920,6.5531,152.6,152.5,6.557]
[1724793551222,50.0,152.61,152.46,6.5587]
[1724793551411,6.5553,152.55,152.44,11.9589]
[1724793551665,50.0,152.59,152.45,16.3983]
[1724793551797,6.5554,152.55,152.45,16.3983]
[1724793552010,6.5554,152.55,152.46,1.30863623]
[1724793552209,50.0,152.59,152.46,7.86723623]
[1724793552633,6.5552,152.55,152.46,7.86723623]
[1724793552861,16.3809,152.62,152.46,7.86723623]
[1724793552862,6.555,152.56,152.46,7.86723623]
[1724793553422,6.5552,152.55,152.46,7.86723623]
[1724793553955,6.5547,152.57,152.46,7.86723623]
[1724793554130,6.5547,152.57,152.47,6.5586]
[1724793554302,6.5548,152.56,152.48,1.30846458]
[1724793554503,16.3809,152.62,152.49,7.86617893]
[1724793554920,16.3809,152.62,152.5,0.12549]
[1724793555202,66.3764,152.66,152.52,6.5564]
[1724793555521,6.5526,152.62,152.53,1.55893004]
[1724793556017,6.5526,152.61,152.53,1.55893004]
[1724793556398,6.5531,152.6,152.53,1.30795004]
[1724793556713,6.5531,152.6,152.51,16.3921]
[1724793556714,50.0,152.59,152.45,6.5591]
[1724793556907,33.5846013,152.65,152.44,11.9589]
[1724793556908,6.5561,152.53,152.44,11.9589]
[1724793557118,6.5556,152.54,152.44,11.9589]
[1724793557443,6.5556,152.54,152.45,7.7935945]
[1724793557642,6.5556,152.54,152.46,1.23401355]
[1724793557924,6.5565,152.52,152.46,1.23401355]
[1724793558107,6.5561,152.53,152.44,11.9589]
[1724793558306,6.5561,152.53,152.45,1.30857055]
[1724793558515,6.5565,152.52,152.45,1.30857055]
[1724793558713,6.5565,152.52,152.46,1.30848471]
[1724793558915,6.5561,152.53,152.46,1.30848471]
[1724793559822,50.0,152.57,152.45,1.31134856]
[1724793560125,6.5565,152.52,152.45,1.31134856]
[1724793560313,6.5565,152.52,152.44,0.12549]
[1724793560647,6.5571,152.51,152.44,0.25098]
[1724793560897,6.5571,152.51,152.44,45.25098]
[1724793561013,16.3882,152.55,152.44,45.25098]
[1724793561204,6.5573,152.51,152.44,45.25098]
[1724793561403,6.5565,152.52,152.44,45.25098]
[1724793561624,6.5565,152.52,152.44,0.25098]
[1724793563424,6.5571,152.51,152.44,0.25098]
[1724793565835,50.0,152.57,152.44,0.25098]
[1724793566046,56.5539,152.59,152.49,6.5577]
[1724793566214,49.9627013,152.65,152.49,6.5577]
[1724793566215,50.0,152.61,152.5,1.55966113]
[1724793566416,50.0,152.63,152.5,46.55966113]
[1724793566629,6.553,152.61,152.51,6.5569]
[1724793566941,6.5526,152.62,152.52,53.11808355]
[1724793567111,6.5517,152.64,152.53,6.556]
[1724793567345,6.5517,152.64,152.54,46.56138729]
[1724793567636,6.5518,152.63,152.54,45.12549]
[1724793567880,6.5518,152.63,152.55,0.12549]
[1724793568038,50.0,152.64,152.55,0.12549]
[1724793568039,6.5513,152.64,152.55,51.68069]
[1724793568228,6.5513,152.64,152.56,45.12549]
[1724793568533,6.5513,152.64,152.57,0.12549]
[1724793568740,6.5513,152.64,152.57,1.43567869]
[1724793569613,6.5513,152.64,152.57,0.12549]
[1724793569819,6.5513,152.64,152.56,0.25098]
[1724793571554,6.5513,152.64,152.41,102.03247425]
[1724793571555,50.0,152.61,152.5,28.9747]
[1724793571721,50.0,152.59,152.5,12.5823]
[1724793572227,56.5551,152.56,152.47,31.3659]
[1724793572454,6.5552,152.55,152.47,31.3659]
[1724793572654,50.0,152.54,152.44,28.082]
[1724793572949,6.5561,152.53,152.44,34.6418]
[1724793573129,6.5565,152.52,152.44,28.082]
[1724793573447,6.5561,152.53,152.44,34.6418]
[1724793574420,6.5561,152.53,152.45,0.12549]
[1724793574770,6.5561,152.53,152.44,34.6418]
[1724793575828,6.5561,152.53,152.45,0.12549]
[1724793576127,6.5561,152.53,152.45,45.25098]
[1724793576745,6.5565,152.52,152.45,45.25098]
[1724793577947,6.5561,152.53,152.45,45.25098]
[1724793578552,50.0,152.56,152.45,45.25098]
[1724793578961,50.0,152.54,152.45,45.0]
[1724793579250,66.39,152.54,152.44,11.6832]
[1724793579441,6.5569,152.52,152.44,11.6832]
[1724793579664,6.5569,152.51,152.44,11.6832]
[1724793579948,50.0,152.54,152.4,16.4031]
[1724793580127,6.5573,152.51,152.41,51.5608]
[1724793580558,6.5573,152.51,152.42,6.5607]
[1724793580846,50.0,152.54,152.44,6.5599]
[1724793580847,6.5564,152.53,152.44,6.5599]
[1724793580922,6.5556,152.55,152.45,0.12549]
[1724793581133,50.0,152.54,152.45,0.60215146]
[1724793581333,33.5834013,152.65,152.44,0.25098]
[1724793581334,56.5543,152.57,152.46,17.2506621]
[1724793581536,50.0,152.59,152.49,6.5576]
[1724793581850,50.0,152.59,152.47,45.0]
[1724793581851,50.0,152.54,152.42,16.4012]
[1724793582165,6.5573,152.51,152.39,30.8991]
[1724793582470,6.5573,152.51,152.41,6.5612]
[1724793582745,6.5573,152.5,152.41,6.5612]
[1724793582947,6.5569,152.51,152.41,6.5612]
[1724793583130,6.5569,152.51,152.42,6.5607]
[1724793583551,6.5583,152.48,152.4,16.404]
[1724793583743,6.5577,152.5,152.41,45.0]
[1724793583948,6.5577,152.5,152.42,0.12549]
[1724793584132,6.5577,152.5,152.42,0.25098]
[1724793584942,6.5579,152.49,152.42,0.25098]
[1724793585148,16.3878,152.56,152.31,43.5627]
[1724793585149,50.0,152.41,152.31,43.5627]
[1724793585355,6.5621,152.4,152.31,11.7065]
[1724793585557,6.5621,152.39,152.31,11.7065]
[1724793585744,50.0,152.39,152.31,11.7065]
[1724793586055,50.0,152.39,152.28,22.9826]
[1724793586294,56.5603,152.44,152.31,16.4136]